[Event "Chess Ladies Graz 2024"]
[Site "Graz"]
[Date "2024.03.01"]
[Round "7.1"]
[White "Froewis, Annika"]
[Black "Daulyte-Cornette, Deimante"]
[Result "0-1"]
[ECO "B32"]
[WhiteElo "2133"]
[BlackElo "2372"]
[Annotator "TA"]
[PlyCount "128"]
[EventDate "2024.02.25"]
[EventType "tourn"]
[EventCountry "AUT"]
[SourceTitle "playchess.com"]
[Source "ChessBase"]
[SourceQuality "1"]
[TimeControl "40/5400+30:1800+30"]

{[%evp 14,128,46,37,39,35,43,37,36,48,32,25,33,11,33,0,20,0,0,6,18,-29,6,-55,-45,-48,-47,-44,-18,-32,-8,-27,-15,-18,-20,-38,-26,-61,-25,-53,-45,-82,-37,-56,-37,-46,-29,-44,-41,-191,-131,-359,-348,-373,-287,-256,-121,-145,-138,-137,-143,-148,-153,-491,-487,-489,-491,-485,-466,-477,-468,-494,-472,-512,-487,-852,-482,-470,-215,-204,-190,-264,-169,-189,-186,-224,-203,-262,-255,-296,-248,-233,-188,-191,-160,-160,-173,-181,-118,-237,0,0,0,-232,-223,-546,-520,-550,-549,-1250,-495,-1807,-1683,-29984,-29984,-29971,-29971]} 1. e4 {[%emt 0:00:03]} c5 {[%emt 0:00:11]} 2. Nf3 {[%emt 0:00:05][%cal Bg1f3,Bf3d4,Bd4b5,Bb5a3,Ba3c4][%mdl 32]} Nc6 {[%emt 0:00:06]} 3. d4 {[%emt 0:00:04]} cxd4 {[%emt 0:00:07]} 4. Nxd4 {[%emt 0:00:05]} e5 {[%emt 0:00:08]} 5. Nb5 {[%emt 0:00:11]} d6 {[%emt 0:00:08]} 6. N1c3 {[%emt 0:00:14]} a6 {[%emt 0:00:12]} 7. Na3 {[%emt 0:00:07]} Be7 {[%emt 0:00:15]} 8. Nc4 {[%emt 0:00:38]} b5 {[%emt 0:00:13]} 9. Ne3 {[%emt 0:00:18]} Nf6 {[%emt 0:00:21]} 10. Bd3 {[%emt 0:01:54]} O-O {[%emt 0:03:23] Weiß steht etwas besser.} 11. O-O {[%emt 0:01:52]} Nb4 {[%emt 0:02:34]} 12. Be2 {[%emt 0:03:12]} Be6 {[%emt 0:00:58]} 13. Bf3 {[%emt 0:13:15]} Rc8 {[%emt 0:08:17]} 14. g3 {[%emt 0:08:43]} (14. a4 $5) 14... Qd7 {[%emt 0:15:53]} 15. a3 {[%emt 0:07:15]} Nc6 {[%emt 0:02:31]} 16. Bg2 {[%emt 0:00:26]} Bd8 {[%emt 0:04:19]} 17. Qd3 {[%emt 0:07:32]} (17. Ncd5 {verdient Beachtung.}) 17... Bb6 {[%emt 0:03:59]} 18. Rd1 {[%emt 0:04:32]} (18. Ncd5 $11 Bxd5 19. exd5) 18... Nd4 $15 {[%emt 0:03:27]} 19. Kh1 {[%emt 0:03:58]} Rfd8 {[%emt 0:20:34]} 20. b3 {[%emt 0:19:04]} Rc7 {[%emt 0:13:52]} 21. Bb2 {[%emt 0:02:11]} Qc8 {[%emt 0:01:04]} 22. Rac1 {[%emt 0:03:30]} Ba5 {[%emt 0:03:32]} 23. b4 {[%emt 0:02:37]} Bb6 {[%emt 0:00:07]} 24. Qd2 {[%emt 0:04:37]} Ba7 {[%emt 0:03:37]} 25. Ba1 {[%emt 0:02:53]} h6 {[%emt 0:00:33] Schwarz hat aktiveres Spiel.} 26. Rf1 {[%emt 0:03:33]} Bc4 {[%emt 0:02:41]} 27. Rfd1 {[%emt 0:03:30]} Kh8 {[%emt 0:02:25]} 28. Bb2 {[%emt 0:00:48]} Ng4 {[%emt 0:02:54][%cal Oc4e2]} 29. Nxc4 {[%emt 0:05:03]} Rxc4 {[%emt 0:00:19]} 30. Rf1 $1 {[%emt 0:01:33]} Nf6 $36 {[%emt 0:01:50][%mdl 2048] Schwarz steht aktiver.} 31. h3 {[%emt 0:01:34]} (31. Qd3 $15) 31... Ne6 {[%emt 0:00:46]} (31... Rd7 $19 {Und jetzt ...Rdc7 wäre schön.} 32. f4 Kg8 (32... Rdc7 33. fxe5 Nh5 34. exd6 $17)) 32. f4 $2 {[%emt 0:00:34]} (32. h4 $17) 32... Bd4 $19 {[%emt 0:01:46]} 33. Rf3 {[%emt 0:00:25]} exf4 {[%emt 0:01:40]} 34. gxf4 {[%emt 0:00:39] [#]} Nxf4 {[%emt 0:00:14]} 35. Rxf4 {[%emt 0:00:28]} (35. Qxf4 $2 Bxc3 36. Bxc3 Rxc3 37. Rxc3 Qxc3 $19) 35... Bxc3 {[%emt 0:00:13]} 36. Bxc3 {[%emt 0:00:07]} Rxc3 {[%emt 0:00:04]} 37. Rxf6 {[%emt 0:00:56]} Rxh3+ {[%emt 0:01:22]} (37... gxf6 $2 38. Qxh6+ Kg8 39. Bf3 $18) 38. Kg1 $2 {[%emt 0:00:08]} (38. Bxh3 $17 Qxh3+ 39. Qh2 Qxh2+ (39... Qxa3 40. Rxh6+ gxh6 41. Qxh6+ Kg8 42. Rg1+) 40. Kxh2 gxf6 41. c4) 38... gxf6 {[%emt 0:00:09]} 39. Qf4 {[%emt 0:00:33]} Rg8 {[%emt 0:00:42]} (39... Rxa3 40. Qxf6+ Kg8 41. Rf1 $19) 40. Kf2 {[%emt 0:00:49]} Rh5 {[%emt 0:01:10]} ({Schlechter ist} 40... Rxa3 41. Qxh6#) ({Bloß nicht} 40... Rg6 41. Bxh3 Qxh3 42. Rg1 Rxg1 (42... Qxa3 43. Rxg6 fxg6 44. Qxh6+ Kg8 45. Qxg6+ Kh8 46. Qxf6+ Kh7 47. Qxd6 $16) 43. Kxg1 $19) 41. Bf3 {[%emt 0:03:04]} Rhg5 {[%emt 0:07:56]} ({Nicht} 41... Rh3 42. Bg2 $19) 42. Qxf6+ {[%emt 0:02:38]} Kh7 {[%emt 0:01:00]} 43. Qxf7+ {[%emt 0:16:06]} R8g7 {[%emt 0:00:17]} 44. Qf6 {[%emt 0:00:50]} (44. Qb3 $142) 44... R5g6 {[%emt 0:06:43]} 45. Qf5 {[%emt 0:04:40]} Qxf5 {[%emt 0:03:58]} (45... Qg8 $142 {...Rf7 ist eine echte Drohung.} 46. e5 Rf7) 46. exf5 {[%emt 0:00:03][%mdl 4096] Endspiel. KRR-KRB} Rf6 {[%emt 0:00:18]} 47. Be4 {[%emt 0:01:19]} (47. Ke3 $142) 47... Rc7 {[%emt 0:00:14]} 48. Bd3 {[%emt 0:01:57]} h5 {[%emt 0:01:39]} 49. Ke3 {[%emt 0:02:10]} Kh6 {[%emt 0:00:48]} 50. Kf4 {[%emt 0:00:16]} Rg7 {[%emt 0:00:29] Verhindert Rg1.} 51. Kf3 {[%emt 0:01:17]} Rg4 {[%emt 0:03:53]} 52. Re1 {[%emt 0:00:10]} Kg5 {[%emt 0:00:48]} 53. Re8 {[%emt 0:00:11]} d5 {[%emt 0:01:43]} 54. Rg8+ {[%emt 0:01:14]} Kh4 {[%emt 0:00:09]} 55. Rd8 {[%emt 0:01:00]} d4 {[%emt 0:00:22]} ({Günstiger ist} 55... Rd4 $19 {[%cal Od4d3]} 56. Ke3 Rxd3+ 57. cxd3 Rxf5) 56. Be4 {[%emt 0:01:01] [#]} (56. Rh8 $17) 56... Kg5 $2 {[%emt 0:01:06]} (56... Rf7 $1 $19 {[%cal Rf7e7] Zielt auf ...Re7 ab.} 57. Re8 Rfg7) 57. Rg8+ $1 $11 {[%emt 0:00:15]} Kh4 $2 {[%emt 0:00:19]} (57... Kh6 $11 58. Rxg4 hxg4+ 59. Kxg4 Kg7) 58. Rd8 $19 {[%emt 0:00:06]} Rf7 {[%emt 0:00:23] Droht stark ...Re7.} 59. Rd6 $2 {[%emt 0:00:29] [#]} (59. Re8) 59... Re7 $1 {[%emt 0:02:41]} 60. Rxd4 {[%emt 0:00:17]} Kg5 {[%emt 0:00:17]} 61. Ke3 {[%emt 0:01:27]} h4 {[%emt 0:00:47] Weiss muss nun ...h3 beachten.} 62. Kd3 {[%emt 0:00:31]} (62. f6 $142 Kxf6 63. Kf3 Rg3+ 64. Kf4) 62... h3 {[%emt 0:00:28][%cal Oe7e4] Und ...Rexe4! würde nun gewinnen.} 63. c4 {[%emt 0:00:31]} bxc4+ {[%emt 0:00:41]} 64. Rxc4 {[%emt 0:00:19] [#]} Rexe4 $1 {[%emt 0:00:16][%mdl 512] Gewichteter Fehlerwert: Weiß=0.82/Schwarz=0.34.  Verlustzug:     	Weiß=2     	---        Gewinn verpasst:   	---       	Schwarz=1     Fehler:       	Weiß=8     	Schwarz=4     Ungenau:       	Weiß=6     	Schwarz=6     OK:         	Weiß=14    	Schwarz=19    Bester:       	Weiß=5     	Schwarz=5     Stark:        	Weiß=2     	Schwarz=1} 0-1

[Event "Chess Ladies Graz 2024"]
[Site "Graz"]
[Date "2024.03.01"]
[Round "7.2"]
[White "Schloffer, Jasmin-Denise"]
[Black "Atalik, Ekaterina"]
[Result "1/2-1/2"]
[ECO "E51"]
[WhiteElo "2151"]
[BlackElo "2405"]
[Annotator "RC"]
[PlyCount "169"]
[EventDate "2024.02.25"]
[EventType "tourn"]
[EventCountry "AUT"]
[SourceTitle "playchess.com"]
[Source "ChessBase"]
[SourceQuality "1"]
[TimeControl "40/5400+30:1800+30"]

1. d4 {[%emt 0:00:03]} Nf6 {[%emt 0:00:11]} 2. c4 {[%emt 0:00:05]} e6 {[%emt 0:00:08]} 3. Nc3 {[%emt 0:00:05]} Bb4 {[%emt 0:00:16]} 4. e3 {[%emt 0:00:06]} O-O {[%emt 0:00:33]} 5. Bd2 {[%emt 0:00:05]} d5 {[%emt 0:01:59]} 6. Nf3 {[%emt 0:00:06]} b6 {[%emt 0:01:03]} 7. cxd5 {[%emt 0:00:06]} exd5 {[%emt 0:00:21]} 8. Rc1 {[%emt 0:00:06]} Bb7 {[%emt 0:01:55]} 9. Bd3 {[%emt 0:00:08]} Re8 {[%emt 0:00:38]} 10. O-O {[%emt 0:01:30]} Nbd7 {[%emt 0:07:23]} 11. Nb5 {[%emt 0:04:28]} Bd6 {[%emt 0:00:38]} 12. Nxd6 {[%emt 0:02:48]} cxd6 {[%emt 0:00:04]} 13. Bb4 {[%emt 0:00:07]} Ne4 {[%emt 0:00:42]} 14. Nd2 {[%emt 0:06:01]} Ndf6 {[%emt 0:06:58]} 15. f3 {[%emt 0:10:23]} Ng5 {[%emt 0:00:06]} 16. Re1 {[%emt 0:00:07]} a5 {[%emt 0:02:42]} 17. Ba3 {[%emt 0:00:53]} Qd7 {[%emt 0:01:54]} 18. Qe2 {[%emt 0:09:01]} Ne6 {[%emt 0:06:05]} 19. Qf2 {[%emt 0:04:26]} Ba6 {[%emt 0:07:51]} 20. Bf5 {[%emt 0:02:08]} Rec8 {[%emt 0:05:07]} 21. Rxc8+ {[%emt 0:07:41]} Rxc8 {[%emt 0:00:31]} 22. Qg3 {[%emt 0:00:20]} g6 {[%emt 0:10:08]} 23. Bb1 {[%emt 0:04:19]} Rc6 {[%emt 0:01:41]} 24. b3 {[%emt 0:05:39]} b5 {[%emt 0:09:41]} 25. b4 {[%emt 0:05:49]} a4 {[%emt 0:07:42]} 26. Bb2 {[%emt 0:00:34]} Rc8 {[%emt 0:00:53]} 27. a3 {[%emt 0:04:00]} Ne8 {[%emt 0:02:17]} 28. Bd3 {[%emt 0:03:03]} N8c7 {[%emt 0:01:18]} 29. Rc1 {[%emt 0:02:46]} Na8 {[%emt 0:01:13]} 30. Rxc8+ {[%emt 0:01:39]} Bxc8 {[%emt 0:00:06]} 31. Nb1 {[%emt 0:00:23]} Nb6 {[%emt 0:04:21]} 32. Nc3 {[%emt 0:00:57]} Nc7 {[%emt 0:00:41]} 33. Ne2 {[%emt 0:03:25]} Qe7 {[%emt 0:01:18]} 34. Bc1 {[%emt 0:04:08]} Be6 {[%emt 0:01:40]} 35. Nf4 {[%emt 0:03:12]} Qd7 {[%emt 0:02:07]} 36. Qe1 {[%emt 0:02:07]} Qc6 {[%emt 0:02:52]} 37. Qd2 {[%emt 0:00:53]} Nc4 {[%emt 0:04:41]} 38. Qc2 {[%emt 0:00:52]} Qb6 {[%emt 0:01:33]} 39. Ne2 {[%emt 0:00:51]} Ne8 {[%emt 0:00:39]} 40. Kf2 {[%emt 0:01:27]} Ng7 {[%emt 0:00:51]} 41. Nf4 {[%emt 0:35:43]} Qa7 {[%emt 0:36:24]} 42. Qe2 {[%emt 0:07:56]} Qb7 {[%emt 0:00:00]} 43. g4 {[%emt 0:00:00]} Qe7 {[%emt 0:00:00]} 44. Kg2 {[%emt 0:00:00]} g5 {[%emt 0:00:00]} 45. Nh3 {[%emt 0:00:00]} h6 {[%emt 0:00:00]} 46. Nf2 {[%emt 0:00:00]} f5 {[%emt 0:00:00]} 47. h3 {[%emt 0:00:00]} Bd7 {[%emt 0:00:00]} 48. Nd1 {[%emt 0:00:00]} fxg4 {[%emt 0:00:00]} 49. fxg4 {[%emt 0:00:00]} Ne8 {[%emt 0:00:00]} 50. Nc3 {[%emt 0:00:00]} Nf6 {[%emt 0:00:00]} 51. Qf3 {[%emt 0:00:00]} Qf7 {[%emt 0:00:00]} 52. Bxc4 {[%emt 0:00:00]} bxc4 {[%emt 0:00:00]} 53. Bd2 {[%emt 0:00:00]} Qe6 {[%emt 0:00:00]} 54. Be1 {[%emt 0:00:00]} Be8 {[%emt 0:00:00]} 55. Bf2 {[%emt 0:00:00]} Bg6 {[%emt 0:00:00]} 56. Qd1 {[%emt 0:00:00]} h5 {[%emt 0:00:52]} 57. gxh5 {[%emt 0:02:19]} Bxh5 {[%emt 0:00:06]} 58. Qg1 {[%emt 0:00:40]} Qf5 {[%emt 0:01:26]} 59. Kh2 {[%emt 0:01:01]} Qc2 {[%emt 0:02:46]} 60. Qe1 {[%emt 0:02:06]} Bf3 {[%emt 0:01:43]} 61. Kg3 {[%emt 0:02:33]} g4 {[%emt 0:01:43]} 62. hxg4 {[%emt 0:01:24]} Qg6 {[%emt 0:00:30]} 63. Qg1 {[%emt 0:00:24]} Bxg4 {[%emt 0:00:08]} 64. Be1 {[%emt 0:00:35]} Kf7 {[%emt 0:01:30]} 65. Qf2 {[%emt 0:00:34]} Qh6 {[%emt 0:00:18]} 66. Qf4 {[%emt 0:00:28]} Qh1 {[%emt 0:00:32]} 67. Kf2 {[%emt 0:00:25]} Kg6 {[%emt 0:01:03]} 68. b5 {[%emt 0:00:26]} Bh5 {[%emt 0:00:53]} 69. Qxd6 {[%emt 0:00:25]} Qf3+ {[%emt 0:00:22]} 70. Kg1 {[%emt 0:00:04]} Qxe3+ {[%emt 0:00:08]} 71. Kf1 {[%emt 0:00:19]} Qd3+ {[%emt 0:00:38]} 72. Kg2 {[%emt 0:00:51]} Bf3+ {[%emt 0:00:11]} 73. Kf2 {[%emt 0:00:07]} Bg4 {[%emt 0:00:54]} 74. Qf4 {[%emt 0:00:48]} Bf5 {[%emt 0:00:58]} 75. b6 {[%emt 0:00:31]} Ne4+ {[%emt 0:01:06]} 76. Nxe4 {[%emt 0:00:35]} dxe4 {[%emt 0:00:17]} 77. Qg3+ {[%emt 0:00:27]} Qxg3+ {[%emt 0:00:11]} 78. Kxg3 {[%emt 0:00:04]} Bc8 {[%emt 0:00:06]} 79. Kf4 {[%emt 0:00:33]} Bb7 {[%emt 0:00:04]} 80. Ke5 {[%emt 0:00:16]} e3 {[%emt 0:00:23]} 81. Kf4 {[%emt 0:01:14]} Kf6 {[%emt 0:00:29]} 82. Kxe3 {[%emt 0:00:11]} Ke6 {[%emt 0:00:05]} 83. Kd2 {[%emt 0:00:35]} Kd5 {[%emt 0:00:03]} 84. Kc3 {[%emt 0:00:06]} Kc6 {[%emt 0:00:13]} 85. Kxc4 {[%emt 0:00:17]} 1/2-1/2

[Event "Chess Ladies Graz 2024"]
[Site "Graz"]
[Date "2024.03.01"]
[Round "7.3"]
[White "Mkrtchian, Lilit"]
[Black "Brunello, Marina"]
[Result "1/2-1/2"]
[ECO "A15"]
[WhiteElo "2378"]
[BlackElo "2345"]
[Annotator "RC"]
[PlyCount "168"]
[EventDate "2024.02.25"]
[EventType "tourn"]
[EventCountry "AUT"]
[SourceTitle "playchess.com"]
[Source "ChessBase"]
[SourceQuality "1"]
[TimeControl "40/5400+30:1800+30"]

1. Nf3 {[%emt 0:00:16]} Nf6 {[%emt 0:00:07]} 2. c4 {[%emt 0:00:26]} b6 {[%emt 0:00:05]} 3. g3 {[%emt 0:00:15]} Bb7 {[%emt 0:00:07]} 4. Bg2 {[%emt 0:00:04]} g6 {[%emt 0:03:37]} 5. b3 {[%emt 0:00:42]} Bg7 {[%emt 0:00:10]} 6. Bb2 {[%emt 0:00:04]} O-O {[%emt 0:00:16]} 7. O-O {[%emt 0:00:04]} d6 {[%emt 0:07:06]} 8. d4 {[%emt 0:05:55]} Nbd7 {[%emt 0:00:06]} 9. Qc2 {[%emt 0:00:55]} e6 {[%emt 0:15:51]} 10. Nc3 {[%emt 0:05:14]} c5 {[%emt 0:01:17]} 11. e4 {[%emt 0:05:54]} Qe7 {[%emt 0:04:02]} 12. Rad1 {[%emt 0:07:22]} a6 {[%emt 0:13:40]} 13. a4 {[%emt 0:03:18]} Rac8 {[%emt 0:02:58]} 14. Rfe1 {[%emt 0:06:24]} cxd4 {[%emt 0:15:49]} 15. Nxd4 {[%emt 0:00:14]} Ba8 {[%emt 0:00:07]} 16. Ba3 {[%emt 0:20:50]} e5 {[%emt 0:02:22]} 17. Nde2 {[%emt 0:16:08]} Nc5 {[%emt 0:00:07]} 18. b4 {[%emt 0:06:35]} Ne6 {[%emt 0:00:23]} 19. Nd5 {[%emt 0:02:32]} Qa7 {[%emt 0:04:42]} 20. Qb3 {[%emt 0:02:27]} Rfd8 {[%emt 0:02:23]} 21. Bc1 {[%emt 0:01:28]} a5 {[%emt 0:12:21]} 22. Be3 {[%emt 0:01:10]} Rb8 {[%emt 0:00:05]} 23. Nec3 {[%emt 0:08:46]} Bc6 {[%emt 0:02:45]} 24. bxa5 {[%emt 0:02:08]} Bxd5 {[%emt 0:00:27]} 25. cxd5 {[%emt 0:01:24]} Nc5 {[%emt 0:00:08]} 26. axb6 {[%emt 0:00:42]} Rxb6 {[%emt 0:00:54]} 27. Bxc5 {[%emt 0:01:28]} dxc5 {[%emt 0:00:49]} 28. Nb5 {[%emt 0:00:20]} Qa5 {[%emt 0:00:13]} 29. Qc4 {[%emt 0:01:06]} Ra6 {[%emt 0:00:59]} 30. Qxc5 {[%emt 0:00:43]} Qxa4 {[%emt 0:00:25]} 31. Nc3 {[%emt 0:00:23]} Qd7 {[%emt 0:00:19]} 32. Qb5 {[%emt 0:00:28]} Qa7 {[%emt 0:00:05]} 33. Bf1 {[%emt 0:00:40]} Ra3 {[%emt 0:00:54]} 34. Qc4 {[%emt 0:00:28]} Ng4 {[%emt 0:00:15]} 35. Re2 {[%emt 0:00:22]} Qa5 {[%emt 0:06:16]} 36. Nb5 {[%emt 0:00:15]} Ra4 {[%emt 0:00:15]} 37. Qc7 {[%emt 0:00:31]} Qa8 {[%emt 0:00:02]} 38. h3 {[%emt 0:00:50]} Rc8 {[%emt 0:00:16]} 39. Qb6 {[%emt 0:00:33]} Ra6 {[%emt 0:00:40]} 40. Nc7 {[%emt 0:00:18]} Rxb6 {[%emt 0:00:42]} 41. Nxa8 {[%emt 0:30:04]} Rxa8 {[%emt 0:30:22]} 42. hxg4 {[%emt 0:00:03]} Bf8 {[%emt 0:00:45]} 43. Rc2 {[%emt 0:00:56]} Bd6 {[%emt 0:04:14]} 44. Rc6 {[%emt 0:00:00]} Rab8 {[%emt 0:00:00]} 45. Ra1 {[%emt 0:00:00]} Bf8 {[%emt 0:00:00]} 46. Bc4 {[%emt 0:00:00]} R6b7 {[%emt 0:00:00]} 47. Ra2 {[%emt 0:00:00]} Rd8 {[%emt 0:00:00]} 48. Kg2 {[%emt 0:00:00]} Bd6 {[%emt 0:00:00]} 49. Raa6 {[%emt 0:00:00]} Bb8 {[%emt 0:00:00]} 50. Rab6 {[%emt 0:02:24]} Rxb6 {[%emt 0:00:22]} 51. Rxb6 {[%emt 0:00:03]} h6 {[%emt 0:00:18]} 52. Kf3 {[%emt 0:01:08]} Bd6 {[%emt 0:00:17]} 53. Ke2 {[%emt 0:00:15]} Kf8 {[%emt 0:00:21]} 54. Rb7 {[%emt 0:00:16]} Kg7 {[%emt 0:01:49]} 55. Bb3 {[%emt 0:00:46]} Kf8 {[%emt 0:01:12]} 56. Bc4 {[%emt 0:00:23]} Kg7 {[%emt 0:00:04]} 57. Kd3 {[%emt 0:00:09]} Kf8 {[%emt 0:00:14]} 58. f3 {[%emt 0:00:45]} Kg7 {[%emt 0:00:17]} 59. Rb6 {[%emt 0:00:52]} Kf8 {[%emt 0:00:18]} 60. Ra6 {[%emt 0:00:45]} Ke7 {[%emt 0:00:38]} 61. Bb5 {[%emt 0:00:18]} Kf8 {[%emt 0:00:15]} 62. Kc4 {[%emt 0:00:32]} Rc8+ {[%emt 0:01:28]} 63. Bc6 {[%emt 0:00:12]} Rb8 {[%emt 0:00:40]} 64. Bb5 {[%emt 0:01:11]} Rc8+ {[%emt 0:00:04]} 65. Bc6 {[%emt 0:00:04]} Rb8 {[%emt 0:00:03]} 66. Ra7 {[%emt 0:00:38]} Rb4+ {[%emt 0:03:47]} 67. Kc3 {[%emt 0:00:22]} Rd4 {[%emt 0:00:04]} 68. Rd7 {[%emt 0:01:52]} Bb4+ {[%emt 0:00:04]} 69. Kc2 {[%emt 0:00:36]} g5 {[%emt 0:00:31]} 70. Bb5 {[%emt 0:00:09]} Bc5 {[%emt 0:01:05]} 71. Bd3 {[%emt 0:00:11]} Be7 {[%emt 0:00:13]} 72. Rb7 {[%emt 0:00:21]} Bd6 {[%emt 0:00:19]} 73. Kc3 {[%emt 0:00:15]} Be7 {[%emt 0:00:18]} 74. Bc4 {[%emt 0:00:29]} Bd6 {[%emt 0:00:12]} 75. Rd7 {[%emt 0:00:17]} Be7 {[%emt 0:00:04]} 76. Ra7 {[%emt 0:00:34]} Bd6 {[%emt 0:00:22]} 77. Ra8+ {[%emt 0:00:10]} Kg7 {[%emt 0:00:38]} 78. Rd8 {[%emt 0:00:13]} Be7 {[%emt 0:00:05]} 79. Re8 {[%emt 0:00:38]} Bd6 {[%emt 0:00:10]} 80. Rc8 {[%emt 0:01:15]} Kf6 {[%emt 0:00:15]} 81. Rd8 {[%emt 0:00:34]} Bc5 {[%emt 0:01:18]} 82. Rd7 {[%emt 0:00:12]} Be7 {[%emt 0:00:27]} 83. Rb7 {[%emt 0:00:58]} Bd6 {[%emt 0:00:33]} 84. Rd7 {[%emt 0:00:38]} Be7 {[%emt 0:04:19]} 1/2-1/2

[Event "Chess Ladies Graz 2024"]
[Site "Graz"]
[Date "2024.03.01"]
[Round "7.4"]
[White "Trippold, Denise"]
[Black "Mayrhuber, Nikola"]
[Result "1/2-1/2"]
[ECO "A17"]
[WhiteElo "2141"]
[BlackElo "2009"]
[Annotator "RC"]
[PlyCount "125"]
[EventDate "2024.02.25"]
[EventType "tourn"]
[EventCountry "AUT"]
[SourceTitle "playchess.com"]
[Source "ChessBase"]
[SourceQuality "1"]
[TimeControl "40/5400+30:1800+30"]

1. c4 {[%emt 0:00:14]} Nf6 {[%emt 0:00:12]} 2. Nf3 {[%emt 0:00:31]} e6 {[%emt 0:00:07]} 3. e3 {[%emt 0:00:14]} d5 {[%emt 0:00:52]} 4. Nc3 {[%emt 0:00:44]} b6 {[%emt 0:03:32]} 5. b3 {[%emt 0:02:30]} Bb7 {[%emt 0:00:54]} 6. Bb2 {[%emt 0:00:19]} c5 {[%emt 0:01:08]} 7. cxd5 {[%emt 0:00:29]} exd5 {[%emt 0:01:02]} 8. d4 {[%emt 0:03:20]} Nbd7 {[%emt 0:06:29]} 9. Be2 {[%emt 0:01:38]} Bd6 {[%emt 0:00:40]} 10. O-O {[%emt 0:00:49]} Rc8 {[%emt 0:03:07]} 11. dxc5 {[%emt 0:10:11]} bxc5 {[%emt 0:01:48]} 12. b4 {[%emt 0:27:12]} cxb4 {[%emt 0:05:53]} 13. Nb5 {[%emt 0:00:41]} Bb8 {[%emt 0:00:04]} 14. a3 {[%emt 0:04:22]} a5 {[%emt 0:10:57]} 15. axb4 {[%emt 0:03:25]} axb4 {[%emt 0:00:32]} 16. Qb3 {[%emt 0:01:45]} Qe7 {[%emt 0:02:06]} 17. Na7 {[%emt 0:24:28]} Rc7 {[%emt 0:03:58]} 18. Nb5 {[%emt 0:00:47]} Rc8 {[%emt 0:00:40]} 19. Na7 {[%emt 0:00:05]} Rc7 {[%emt 0:03:06]} 20. Nd4 {[%emt 0:01:04]} O-O {[%emt 0:07:46]} 21. Nab5 {[%emt 0:02:34]} Rc4 {[%emt 0:06:57]} 22. Nf5 {[%emt 0:10:47]} Qc5 {[%emt 0:00:12]} 23. Nbd4 {[%emt 0:00:13]} Qc7 {[%emt 0:03:47]} 24. f4 {[%emt 0:01:19]} Nc5 {[%emt 0:01:05]} 25. Qd1 {[%emt 0:00:32]} Nce4 {[%emt 0:01:45]} 26. Qe1 {[%emt 0:01:15]} Re8 {[%emt 0:06:16]} 27. Qh4 {[%emt 0:01:06]} Bc8 {[%emt 0:05:47]} 28. Bd3 {[%emt 0:00:49]} Ba7 {[%emt 0:10:00]} 29. Rf3 {[%emt 0:00:43]} Bxd4 {[%emt 0:01:05]} 30. Nxd4 {[%emt 0:00:02]} Bd7 {[%emt 0:05:45]} 31. Ne2 {[%emt 0:00:29]} Bg4 {[%emt 0:05:22]} 32. Bxe4 {[%emt 0:00:08]} Rcxe4 {[%emt 0:01:49]} 33. Bxf6 {[%emt 0:00:48]} gxf6 {[%emt 0:01:40]} 34. Qxg4+ {[%emt 0:00:02]} Kf8 {[%emt 0:00:08]} 35. Qh5 {[%emt 0:01:25]} Rxe3 {[%emt 0:00:43]} 36. Qh6+ {[%emt 0:00:05]} Kg8 {[%emt 0:00:39]} 37. Rxe3 {[%emt 0:00:24]} Qc5 {[%emt 0:00:29]} 38. Kh1 {[%emt 0:01:23]} Qxe3 {[%emt 0:00:16]} 39. Ng1 {[%emt 0:00:31]} Qd4 {[%emt 0:00:46]} 40. Rc1 {[%emt 0:00:32]} b3 {[%emt 0:00:31]} 41. Qh3 {[%emt 0:19:38]} b2 {[%emt 0:03:32]} 42. Rb1 {[%emt 0:00:45]} Rb8 {[%emt 0:10:21]} 43. Qg4+ {[%emt 0:09:48]} Kf8 {[%emt 0:06:39]} 44. Qe2 {[%emt 0:00:01]} Qc3 {[%emt 0:06:00]} 45. h3 {[%emt 0:00:30]} d4 {[%emt 0:00:07]} 46. Kh2 {[%emt 0:02:17]} d3 {[%emt 0:00:12]} 47. Qd1 {[%emt 0:00:05]} Qc2 {[%emt 0:01:03]} 48. Qf1 {[%emt 0:00:36]} d2 {[%emt 0:03:16]} 49. Nf3 {[%emt 0:00:01]} Rd8 {[%emt 0:01:38]} 50. Rd1 {[%emt 0:01:14]} b1=Q {[%emt 0:01:49]} 51. Rxb1 {[%emt 0:00:11]} d1=Q {[%emt 0:00:16]} 52. Rxd1 {[%emt 0:00:14]} Rxd1 {[%emt 0:00:34]} 53. Qb5 {[%emt 0:00:43]} Qf2 {[%emt 0:00:55]} 54. Qb8+ {[%emt 0:00:38]} Kg7 {[%emt 0:00:09]} 55. Qc8 {[%emt 0:00:37]} h5 {[%emt 0:00:28]} 56. Qf5 {[%emt 0:00:24]} h4 {[%emt 0:01:00]} 57. Qg4+ {[%emt 0:00:05]} Kf8 {[%emt 0:00:19]} 58. Nxh4 {[%emt 0:01:03]} Qg1+ {[%emt 0:00:29]} 59. Kg3 {[%emt 0:00:01]} Qe1+ {[%emt 0:00:17]} 60. Kh2 {[%emt 0:00:15]} Qg1+ {[%emt 0:00:52]} 61. Kg3 {[%emt 0:00:01]} Qe1+ {[%emt 0:00:18]} 62. Kh2 {[%emt 0:00:01]} Qg1+ {[%emt 0:00:40]} 63. Kg3 {[%emt 0:00:05]} 1/2-1/2